bitfinex-derivatives/quotes_BTCF0:USTF0_20210707
["timestamp","ask_amount","ask_price","bid_price","bid_amount"]
[1625690489634,9.61285452,34518.0,34513.0,0.48115088]
[1625690489936,7.88114615,34514.0,34513.0,0.48115088]
[1625690490382,7.92858459,34514.0,34513.0,0.48115088]
[1625690491279,8.16916003,34514.0,34513.0,0.24057544]
[1625690493232,9.16916003,34514.0,34513.0,0.24057544]
[1625690495107,8.16916003,34514.0,34513.0,0.24057544]
[1625690495260,9.16916003,34514.0,34513.0,0.24057544]
[1625690495710,9.37014281,34514.0,34513.0,0.24057544]
[1625690497216,9.37014281,34514.0,34512.0,0.001]
[1625690497364,9.16916003,34514.0,34508.0,0.001]
[1625690497512,7.87274938,34509.0,34508.0,0.001]
[1625690497820,7.92020528,34509.0,34508.0,0.001]
[1625690499313,8.16078072,34509.0,34508.0,0.001]
[1625690500067,8.48030072,34509.0,34508.0,0.001]
[1625690501190,9.48030072,34509.0,34508.0,0.001]
[1625690502242,8.48030072,34509.0,34508.0,0.001]
[1625690506369,8.48030072,34509.0,34507.0,0.24057544]
[1625690506671,7.85823705,34508.0,34507.0,0.24057544]
[1625690506825,7.90569216,34508.0,34507.0,0.24057544]
[1625690507432,8.1462676,34508.0,34507.0,0.24057544]
[1625690507570,9.1462676,34508.0,34507.0,0.24057544]
[1625690509751,8.1462676,34508.0,34507.0,0.24057544]
[1625690510049,9.1462676,34508.0,34507.0,0.24057544]
[1625690532274,8.90569216,34508.0,34502.0,0.001]
[1625690532582,0.04746422,34507.0,34502.0,0.001]
[1625690532875,6.17476517,34503.0,34502.0,0.001]
[1625690533179,6.22222952,34503.0,34502.0,0.001]
[1625690533623,10.53462952,34503.0,34502.0,0.48215088]
[1625690534376,10.53462952,34503.0,34502.0,0.001]
[1625690536250,10.53462952,34503.0,34500.0,4.8192]
[1625690536551,6.17276208,34501.0,34500.0,4.8192]
[1625690536850,6.22022733,34501.0,34500.0,4.8192]
[1625690537153,6.22022733,34501.0,34500.0,5.54092632]
[1625690537977,11.17062733,34501.0,34500.0,5.54092632]
[1625690546992,11.45617733,34501.0,34500.0,5.54092632]
[1625690553156,11.45617733,34501.0,34500.0,9.20862632]
[1625690553744,11.45617733,34501.0,34500.0,13.01302632]
[1625690555320,16.18327733,34501.0,34500.0,13.01302632]
[1625690556520,6.50577733,34501.0,34500.0,13.01302632]
[1625690556672,6.22022733,34501.0,34500.0,13.01302632]
[1625690560651,10.58262733,34501.0,34500.0,13.01302632]
[1625690564704,10.58262733,34501.0,34500.0,13.09834403]
[1625690564940,10.58262733,34501.0,34500.0,13.01302632]
[1625690566890,12.2525501,34501.0,34500.0,13.01302632]
[1625690570797,12.2525501,34501.0,34500.0,12.2913]
[1625690572370,12.2525501,34501.0,34500.0,12.77245088]
[1625690576491,7.8901501,34501.0,34500.0,12.77245088]
[1625690576942,6.22022733,34501.0,34500.0,13.62616797]
[1625690577242,6.18606085,34501.0,34500.0,14.99693105]
[1625690577390,4.18476085,34501.0,34500.0,14.99693105]
[1625690577693,3.51685751,34501.0,34500.0,16.36265132]
[1625690577850,3.50355874,34501.0,34500.0,16.35774952]
[1625690578151,3.51685346,34501.0,34500.0,16.36265295]
[1625690578291,2.18225179,34501.0,34500.0,16.36265295]
[1625690578445,0.18095179,34501.0,34500.0,16.36265295]
[1625690579641,0.18095179,34501.0,34500.0,21.09615295]
[1625690579791,0.18095179,34501.0,34500.0,16.36265295]
[1625690580473,0.16765707,34501.0,34500.0,16.36265295]
[1625690580618,0.08824987,34503.0,34500.0,16.36265295]
[1625690580921,4.13254987,34503.0,34500.0,12.77735431]
[1625690581069,0.01329462,34502.0,34500.0,12.77245088]
[1625690582194,0.01329462,34502.0,34501.0,3.814]
[1625690583257,0.001,34504.0,34501.0,3.814]
[1625690583696,0.01325865,34503.0,34501.0,3.814]
[1625690583845,0.01325865,34503.0,34502.0,5.0332]
[1625690584597,0.01325865,34503.0,34502.0,5.27377544]
[1625690585649,0.01325865,34503.0,34502.0,11.45397544]
[1625690585948,5.865e-05,34504.0,34502.0,11.77092544]
[1625690594058,1.85605865,34504.0,34502.0,11.77092544]
[1625690594216,1.85605865,34504.0,34502.0,11.45397544]
[1625690594361,1.85605865,34504.0,34503.0,3.717]
[1625690597967,1.85605865,34504.0,34503.0,8.8886]
[1625690600073,1.85605865,34504.0,34503.0,9.16076]
[1625690600371,1.85605865,34504.0,34503.0,14.69016]
[1625690602702,1.86929835,34504.0,34503.0,14.69016]
[1625690606381,1.86929835,34504.0,34503.0,14.69509602]
[1625690609096,1.40229835,34504.0,34503.0,14.69509602]
[1625690610737,1.40229835,34504.0,34503.0,15.71538708]
[1625690613966,1.40229835,34504.0,34503.0,16.67768884]
[1625690614117,1.40229835,34504.0,34503.0,17.86804651]
[1625690615242,1.40229835,34504.0,34503.0,16.90574475]
[1625690616069,1.40229835,34504.0,34503.0,17.86804651]
[1625690627484,1.40229835,34504.0,34503.0,22.87564651]
[1625690629209,2.40350495,34504.0,34503.0,22.87564651]
[1625690631312,2.40350495,34504.0,34503.0,17.86804651]
[1625690631913,1.40229835,34504.0,34503.0,19.23003286]
[1625690632590,2.40425816,34504.0,34503.0,19.23003286]
[1625690636568,3.57527038,34504.0,34503.0,19.23003286]
[1625690637242,3.57527038,34504.0,34503.0,18.2677311]
[1625690638371,3.57527038,34504.0,34503.0,19.23003286]
[1625690638524,4.24527614,34504.0,34503.0,19.91245508]
[1625690652188,5.58735215,34504.0,34503.0,19.91245508]
[1625690652489,4.24527614,34504.0,34503.0,19.91245508]
[1625690663302,4.74527614,34504.0,34503.0,0.51819998]
[1625690663449,5.77943454,34504.0,34503.0,0.51819998]
[1625690663606,8.96040668,34504.0,34502.0,0.59745749]
[1625690664061,0.04744196,34503.0,34502.0,0.59745749]
[1625690664285,1.34937991,34503.0,34498.0,0.001]
[1625690664424,0.5,34502.0,34497.0,1.14487499]
[1625690664575,0.5,34502.0,34493.0,0.06910439]
[1625690664576,0.84594,34502.0,34493.0,0.06910439]
[1625690664728,0.89341856,34502.0,34493.0,0.06910439]
[1625690664877,4.12620595,34494.0,34483.0,0.004]
[1625690665026,0.5,34493.0,34483.0,0.004]
[1625690665178,3.16144716,34489.0,34483.0,0.004]
[1625690665328,4.16144716,34489.0,34488.0,0.003]
[1625690665640,4.66144716,34489.0,34488.0,0.003]
[1625690665777,9.11827137,34489.0,34488.0,0.003]
[1625690666226,8.61827137,34489.0,34488.0,0.003]
[1625690666527,8.60494716,34489.0,34488.0,0.003]
[1625690666826,8.08609804,34489.0,34488.0,0.003]
[1625690667353,7.42218724,34489.0,34488.0,0.003]
[1625690667951,6.42218724,34489.0,34488.0,0.003]
[1625690668253,7.42218724,34489.0,34488.0,0.003]
[1625690668552,7.9201846,34489.0,34488.0,0.003]
[1625690670727,6.9201846,34489.0,34488.0,0.003]
[1625690671031,7.9201846,34489.0,34488.0,0.003]
[1625690675317,7.9201846,34489.0,34476.0,0.9396]
[1625690675608,0.49627518,34478.0,34476.0,0.9396]
[1625690675761,0.79079518,34478.0,34476.0,0.9396]
[1625690676884,0.72172632,34477.0,34476.0,0.9396]
[1625690678310,5.63902632,34477.0,34476.0,0.9396]
[1625690682217,5.63902632,34477.0,34476.0,5.434]
[1625690682893,0.72172632,34477.0,34476.0,5.434]
[1625690686346,0.72272632,34477.0,34476.0,5.434]
[1625690692510,0.73610819,34477.0,34476.0,5.4388795]
[1625690692881,0.73610819,34477.0,34476.0,5.67945494]
[1625690696044,1.01975819,34477.0,34476.0,5.67945494]
[1625690698288,1.01975819,34477.0,34476.0,5.4388795]
[1625690698442,1.00637632,34477.0,34476.0,5.434]
[1625690698741,1.01976689,34477.0,34476.0,5.43887603]
[1625690701747,1.01976689,34477.0,34476.0,0.94447603]
[1625690708423,1.01976689,34477.0,34476.0,0.9396]
[1625690709476,1.01976689,34477.0,34476.0,0.94446993]
[1625690710224,1.51805549,34477.0,34476.0,0.94446993]
[1625690710374,1.51805549,34477.0,34476.0,0.9396]
[1625690714893,2.51676026,34477.0,34476.0,0.9396]
[1625690715337,1.51805549,34477.0,34476.0,0.9396]
[1625690715563,2.51665278,34477.0,34476.0,0.9396]
[1625690718268,3.6834949,34477.0,34476.0,0.9396]
[1625690719173,2.51665278,34477.0,34476.0,0.9396]
[1625690719468,3.68492918,34477.0,34476.0,0.9396]
[1625690720369,5.02192964,34477.0,34476.0,0.9396]
[1625690722620,6.52939867,34477.0,34476.0,0.9396]
[1625690724422,7.19949739,34477.0,34476.0,0.9396]
[1625690724573,7.19949739,34477.0,34476.0,1.45625281]
[1625690732021,7.19949739,34477.0,34476.0,0.51665281]
[1625690733740,7.19949739,34477.0,34476.0,0.00485456]
[1625690746655,7.19949739,34477.0,34476.0,0.51667228]
[1625690753651,7.19949739,34477.0,34476.0,0.00485456]
[1625690754316,7.19949739,34477.0,34476.0,0.51699649]
[1625690758373,7.19949739,34477.0,34476.0,1.20004973]
[1625690758974,7.19949739,34477.0,34476.0,0.51699649]
[1625690759424,7.19949739,34477.0,34476.0,1.20020478]
[1625690760859,6.91584739,34477.0,34476.0,1.50696478]
[1625690760999,6.91584739,34477.0,34476.0,2.5317485]
[1625690761000,6.67527195,34477.0,34476.0,2.5317485]
[1625690761304,6.67527195,34477.0,34476.0,8.06441954]
[1625690761832,5.16780292,34477.0,34476.0,8.06441954]
[1625690761984,5.16780292,34477.0,34476.0,9.43052439]
[1625690764151,5.16780292,34477.0,34476.0,8.06441954]
[1625690765510,5.16780292,34477.0,34476.0,9.43022418]
[1625690772343,3.83080246,34477.0,34476.0,9.43022418]
[1625690773620,3.81741189,34477.0,34476.0,9.43022418]
[1625690783755,2.64913549,34477.0,34476.0,9.43022418]
[1625690785410,2.40856005,34477.0,34476.0,9.43022418]
[1625690785558,1.34520397,34480.0,34476.0,9.43022418]
[1625690785715,1.68141085,34489.0,34476.0,9.43022418]
[1625690785865,1.0,34495.0,34476.0,9.43022418]
[1625690785866,1.51313523,34485.0,34476.0,9.43022418]
[1625690786008,1.51313523,34485.0,34477.0,0.00482012]
[1625690786160,0.33703016,34483.0,34477.0,1.70889855]
[1625690786329,1.68947709,34497.0,34478.0,1.70400884]
[1625690786330,0.33717327,34484.0,34478.0,1.70400884]
[1625690786610,0.33717327,34484.0,34477.0,0.00482012]
[1625690786611,0.34038439,34487.0,34481.0,1.70392814]
[1625690786910,0.34038439,34487.0,34486.0,3.8851]
[1625690787062,0.003,34487.0,34486.0,4.22406]
[1625690787367,0.003,34487.0,34486.0,4.22887575]
[1625690787510,0.003,34487.0,34486.0,4.95060207]
[1625690788341,0.003,34488.0,34486.0,4.95060207]
[1625690788790,0.003,34488.0,34487.0,0.00481572]
[1625690789540,0.003,34488.0,34487.0,0.24539116]
[1625690790005,0.004,34493.0,34487.0,0.24057544]
[1625690791351,0.003,34488.0,34487.0,0.24057544]
[1625690791645,0.003,34488.0,34487.0,0.24539096]
[1625690792170,0.003,34488.0,34487.0,0.24057544]
[1625690795173,0.003,34488.0,34487.0,0.24539066]
[1625690796223,0.003,34488.0,34487.0,0.24057544]
[1625690797350,0.001,34490.0,34487.0,0.24057544]
[1625690798780,0.001,34490.0,34487.0,1.76748277]
[1625690799389,0.001,34490.0,34487.0,0.24057544]
[1625690800803,0.001,34490.0,34489.0,1.35665364]
[1625690802156,0.001,34490.0,34488.0,1.35608447]
[1625690802455,0.001,34490.0,34489.0,1.35608563]
[1625690803731,0.001,34490.0,34488.0,1.35608684]
[1625690805691,0.001,34490.0,34489.0,1.1859318]
[1625690806290,0.001,34492.0,34489.0,1.1859318]
[1625690806887,0.001,34492.0,34491.0,3.9779]
[1625690807563,0.001,34492.0,34491.0,4.45905088]
[1625690810642,0.001,34492.0,34491.0,5.64462996]
[1625690812141,0.001,34492.0,34491.0,5.64944178]
[1625690815382,0.001,34494.0,34491.0,5.64944178]
[1625690815673,0.001,34494.0,34493.0,0.24057544]
[1625690815827,0.001,34494.0,34493.0,1.25657348]
[1625690816121,0.001,34494.0,34493.0,1.2613875]
[1625690818758,0.001,34494.0,34493.0,0.24538946]
[1625690820041,0.01453415,34494.0,34493.0,0.24538946]
[1625690826186,0.01453415,34494.0,34493.0,1.26217221]
[1625690827237,0.01453415,34494.0,34493.0,1.02159677]
[1625690827389,0.01353415,34494.0,34493.0,1.02159677]
[1625690827767,0.01353415,34494.0,34493.0,1.98389853]
[1625690827916,0.01353444,34495.0,34493.0,1.98389853]
[1625690828074,0.01353441,34494.0,34493.0,1.98389853]
[1625690828369,0.0135345,34495.0,34493.0,1.98389853]
[1625690828526,0.0135345,34495.0,34494.0,3.779]
[1625690828669,0.0135345,34495.0,34494.0,3.78381421]
[1625690835351,0.0135345,34495.0,34494.0,4.80174355]
[1625690836478,0.18304379,34495.0,34494.0,4.80174355]
[1625690837078,0.0135345,34495.0,34494.0,4.80174355]
[1625690837680,0.18312561,34495.0,34494.0,4.80174355]
[1625690838277,0.0135345,34495.0,34494.0,4.80174355]
[1625690838653,0.18319193,34495.0,34494.0,4.80174355]
[1625690839554,0.0135345,34495.0,34494.0,5.99118201]
[1625690840004,0.01353336,34496.0,34494.0,5.99118201]
[1625690840232,0.01353336,34496.0,34495.0,0.0048148]
[1625690840379,0.01353336,34496.0,34495.0,1.02440892]
[1625690840763,1.03175497,34496.0,34495.0,1.02440892]
[1625690841732,1.03175497,34496.0,34495.0,2.21539032]
[1625690843686,2.22154544,34496.0,34495.0,2.21539032]
[1625690845261,2.22154544,34496.0,34495.0,3.5779835]
[1625690845712,4.26470308,34496.0,34495.0,4.26027447]
[1625690846016,0.01353336,34496.0,34495.0,0.0048148]
[1625690846311,4.26992117,34496.0,34495.0,4.2691208]
[1625690850368,4.26992117,34496.0,34495.0,4.99084712]
[1625690857732,4.26992117,34496.0,34495.0,9.47404712]
[1625690862082,2.55232117,34496.0,34495.0,9.47404712]
[1625690862235,0.001,34498.0,34495.0,9.47404712]
[1625690862395,0.86490015,34497.0,34495.0,11.00204113]
[1625690862536,0.17081298,34498.0,34497.0,5.25360324]
[1625690862684,2.75436798,34504.0,34497.0,5.25360324]
[1625690863005,0.17079801,34503.0,34497.0,7.79828923]
[1625690863133,1.36518969,34509.0,34498.0,0.01336773]
[1625690863283,0.002,34503.0,34502.0,6.58856917]
[1625690863434,0.002,34503.0,34502.0,7.34234917]
[1625690863736,0.002,34503.0,34502.0,7.3471832]
[1625690863891,0.002,34503.0,34502.0,6.8471832]
[1625690864487,0.002,34503.0,34502.0,7.56890952]
[1625690865535,0.002,34503.0,34502.0,7.31512952]
[1625690865835,0.002,34503.0,34502.0,9.25547747]
[1625690866289,0.001,34505.0,34502.0,9.25547747]
[1625690866437,0.001,34505.0,34504.0,0.24057544]
[1625690866588,0.001,34505.0,34504.0,4.78598351]
[1625690866887,0.001,34505.0,34504.0,4.79080116]
[1625690867487,0.001,34505.0,34504.0,4.78598351]
[1625690870564,0.001,34505.0,34504.0,3.10249904]
[1625690873870,0.001,34505.0,34504.0,4.78123037]
[1625690874620,0.001,34505.0,34504.0,3.10249904]
[1625690874772,0.001,34505.0,34504.0,4.78099066]
[1625690875372,0.001,34507.0,34504.0,4.78099066]
[1625690875671,0.001,34507.0,34506.0,3.35840602]
[1625690876724,0.001,34507.0,34506.0,3.59898146]
[1625690882280,0.001,34507.0,34506.0,4.7719774]
[1625690887247,0.001,34509.0,34506.0,4.7719774]
[1625690887538,0.001,34509.0,34508.0,4.52062333]
[1625690887990,0.001,34509.0,34508.0,4.52545044]
[1625690888748,0.001,34509.0,34508.0,4.76602588]
[1625690888894,0.001,34509.0,34508.0,5.26602588]
[1625690889199,0.001,34509.0,34508.0,6.93650401]
[1625690890096,0.001,34509.0,34508.0,3.92275512]
[1625690890393,0.001,34509.0,34508.0,6.92763012]
[1625690892288,0.001,34509.0,34508.0,7.92893416]
[1625690896256,0.001,34511.0,34508.0,7.92893416]
[1625690896410,0.001,34511.0,34510.0,4.167563]
[1625690896555,0.001,34511.0,34510.0,8.00127836]
[1625690896855,0.001,34511.0,34510.0,8.24667991]
[1625690905269,0.001,34513.0,34510.0,8.24667991]
[1625690905567,0.001,34513.0,34512.0,7.14939151]
[1625690905717,0.001,34513.0,34512.0,7.64939151]
[1625690905865,0.001,34513.0,34512.0,7.65421369]
[1625690906691,0.35230105,34540.0,34512.0,7.71121369]
[1625690906844,0.35230105,34540.0,34539.0,0.96230176]
[1625690907000,1.01207935,34551.0,34539.0,1.73999176]
[1625690907147,0.9265,34553.0,34540.0,0.057]
[1625690907441,0.9265,34553.0,34547.0,0.08261863]
[1625690907591,0.9265,34553.0,34547.0,0.34144863]
[1625690907740,0.9265,34553.0,34548.0,0.057]
[1625690908943,0.9265,34553.0,34552.0,0.48115088]
[1625690910744,0.9265,34553.0,34548.0,0.057]
[1625690910903,0.24057544,34549.0,34546.0,0.32319964]
[1625690911045,0.24057544,34549.0,34546.0,0.24057544]
[1625690911343,0.24057544,34551.0,34546.0,0.24057544]
[1625690911495,0.24057544,34551.0,34550.0,4.6433]
[1625690912697,0.24057544,34551.0,34550.0,2.6424]
[1625690912847,0.24057544,34551.0,34550.0,0.24057544]
[1625690913299,5.03527544,34551.0,34546.0,0.24057544]
[1625690914875,0.24057544,34547.0,34546.0,0.24057544]
[1625690927421,0.24057544,34547.0,34546.0,0.29757544]
[1625690928547,0.24057544,34547.0,34546.0,0.24057544]
[1625690928994,0.001,34550.0,34546.0,0.48115088]
[1625690931021,0.001,34550.0,34546.0,0.72172632]
[1625690931934,0.001,34550.0,34546.0,0.24057544]
[1625690932222,0.001,34550.0,34545.0,4.8456]
[1625690932372,0.31703,34550.0,34545.0,4.8456]
[1625690932672,0.0135305,34549.0,34545.0,4.8456]
[1625690932977,0.48115088,34546.0,34545.0,4.8456]
[1625690934476,0.49468134,34546.0,34545.0,4.8456]
[1625690947023,0.49468134,34546.0,34545.0,4.9289503]
[1625690948220,0.49468134,34546.0,34545.0,5.26238818]
[1625690949270,0.49468134,34546.0,34545.0,5.17903788]
[1625690949872,0.49468134,34546.0,34545.0,4.92902367]
[1625690950099,0.49468134,34546.0,34545.0,5.26270093]
[1625690950772,0.49468134,34546.0,34545.0,5.17927726]
[1625690951224,0.49468134,34546.0,34545.0,5.5177585]
[1625690955129,0.49468134,34546.0,34545.0,6.51961652]
[1625690955130,1.17365772,34546.0,34545.0,6.51961652]
[1625690955729,1.17365772,34546.0,34545.0,6.51480762]
[1625690955880,1.17365772,34546.0,34545.0,5.5129496]
[1625690956036,1.17365772,34546.0,34545.0,6.51944827]
[1625690957157,1.17365772,34546.0,34545.0,6.76002371]
[1625690959042,0.49468134,34546.0,34545.0,7.92905599]
[1625690959184,0.49468134,34546.0,34545.0,8.17023599]
[1625690959789,1.17414807,34546.0,34545.0,8.17023599]
[1625690960161,1.17414807,34546.0,34545.0,7.00120371]
[1625690960310,1.17414807,34546.0,34545.0,6.76002371]
[1625690961136,2.19361743,34546.0,34545.0,6.76002371]
[1625690961286,2.19361743,34546.0,34545.0,7.04174371]
[1625690961886,2.19361743,34546.0,34545.0,8.21166652]
[1625690964066,3.38446936,34546.0,34545.0,8.21166652]
[1625690965415,3.38446936,34546.0,34545.0,7.92994652]
[1625690966018,4.74665223,34546.0,34545.0,7.92994652]
[1625690969994,4.74665223,34546.0,34545.0,9.27167052]
[1625690970894,3.38446936,34546.0,34545.0,9.27167052]
[1625690972848,3.38446936,34546.0,34545.0,9.32867052]
[1625690975777,2.19361743,34546.0,34545.0,9.32867052]
[1625690977287,2.19361743,34546.0,34545.0,10.8362657]
[1625690984718,1.17414807,34546.0,34545.0,10.8362657]
[1625690989225,2.19606709,34546.0,34545.0,10.8362657]
[1625690989526,1.17414807,34546.0,34545.0,10.8362657]
[1625690989681,2.19606977,34546.0,34545.0,10.8362657]
[1625690990432,1.17414807,34546.0,34545.0,10.8362657]
[1625690991115,2.19606857,34546.0,34545.0,10.8362657]
[1625690991403,2.19606857,34546.0,34545.0,9.32867052]
[1625690991554,2.19606857,34546.0,34545.0,10.83584907]
[1625690992304,2.19606857,34546.0,34545.0,9.32867052]
[1625690993580,2.19606857,34546.0,34545.0,10.83577284]
[1625690994034,2.19606857,34546.0,34545.0,9.32867052]
[1625690996808,2.19606857,34546.0,34545.0,9.8308184]
[1625690997110,2.19606857,34546.0,34545.0,11.33723027]
[1625690997409,1.17414807,34546.0,34545.0,11.33723027]
[1625690998836,1.17414807,34546.0,34545.0,16.81543027]
[1625690998990,1.17414807,34546.0,34545.0,11.96983027]
[1625690999136,1.17414807,34546.0,34545.0,6.43463027]
[1625690999297,2.19594982,34546.0,34545.0,4.9282184]
[1625690999587,6.67774982,34546.0,34545.0,4.9282184]
[1625690999887,2.19594982,34546.0,34545.0,4.9282184]
[1625691000037,3.38806284,34546.0,34545.0,4.9282184]
[1625691007773,3.38806284,34546.0,34545.0,9.3831184]
[1625691010625,4.75078401,34546.0,34545.0,9.3831184]
[1625691011600,3.38806284,34546.0,34545.0,9.3831184]
[1625691011975,4.75081641,34546.0,34545.0,9.3831184]
[1625691013175,3.38806284,34546.0,34545.0,9.3831184]
[1625691016936,4.75080797,34546.0,34545.0,9.3831184]
[1625691017234,3.38806284,34546.0,34545.0,9.3831184]
[1625691018297,2.90691196,34546.0,34545.0,9.14254296]
[1625691018812,3.38806284,34546.0,34545.0,9.14254296]
[1625691024967,3.38806284,34546.0,34545.0,13.99844296]
[1625691030302,3.73544284,34546.0,34545.0,13.99844296]
[1625691030756,7.42574284,34546.0,34545.0,13.99844296]
[1625691033755,7.42574284,34546.0,34545.0,4.68764296]
[1625691034062,8.78869645,34546.0,34545.0,4.68764296]
[1625691034357,8.78869645,34546.0,34545.0,3.34591896]
[1625691034521,8.8228061,34546.0,34545.0,3.34591896]
[1625691034656,8.8228061,34546.0,34545.0,3.34111122]
[1625691034820,8.8228061,34546.0,34545.0,2.17118841]
[1625691035256,13.7718061,34546.0,34545.0,2.17118841]
[1625691035859,15.30504062,34546.0,34545.0,2.17118841]
[1625691036457,20.93424062,34546.0,34545.0,2.17118841]
[1625691037739,21.93424062,34546.0,34545.0,0.17048841]
[1625691037963,21.93424062,34546.0,34545.0,0.50688978]
[1625691038267,21.93424062,34546.0,34545.0,0.33640137]
[1625691038416,21.93424062,34546.0,34545.0,0.50457349]
[1625691038864,20.93424062,34546.0,34545.0,0.50457349]
[1625691039015,21.93424062,34546.0,34545.0,0.58866328]
[1625691039165,21.93424062,34546.0,34542.0,1.01003859]
[1625691039464,21.93424062,34546.0,34542.0,0.001]
[1625691039465,5.10673441,34543.0,34542.0,0.001]
[1625691039766,5.12026131,34543.0,34542.0,0.001]
[1625691040219,6.12026131,34543.0,34542.0,0.001]
[1625691040520,5.12026131,34543.0,34542.0,0.001]
[1625691041269,5.36083675,34543.0,34542.0,0.001]
[1625691042771,3.82885047,34543.0,34542.0,0.001]
[1625691042929,5.3604011,34543.0,34542.0,0.001]
[1625691043448,3.82885047,34543.0,34542.0,0.001]
[1625691046374,3.82885047,34543.0,34541.0,1.00930992]
[1625691046675,3.57252293,34542.0,34541.0,1.00930992]
[1625691046825,3.58604918,34542.0,34541.0,1.00930992]
[1625691047124,8.21034918,34542.0,34541.0,1.00930992]
[1625691049453,8.21034918,34542.0,34540.0,1.00927202]
[1625691049754,3.57194081,34541.0,34539.0,1.17880217]
[1625691049977,1.37424157,34541.0,34540.0,1.0092464]
[1625691050135,5.18794157,34541.0,34540.0,1.0092464]
[1625691050278,7.38564472,34541.0,34540.0,1.0092464]
[1625691050428,6.02492966,34541.0,34540.0,1.0092464]
[1625691050578,6.03845602,34541.0,34540.0,1.0092464]
[1625691050879,9.85215602,34541.0,34540.0,2.18670489]
[1625691051183,9.85215602,34541.0,34540.0,1.0092464]
[1625691051409,11.21283748,34541.0,34540.0,1.0092464]
[1625691052306,9.85215602,34541.0,34540.0,1.0092464]
[1625691053365,9.85215602,34541.0,34540.0,2.18728155]
[1625691053662,9.85215602,34541.0,34540.0,1.0092464]
[1625691055013,9.85215602,34541.0,34540.0,2.18743233]
[1625691055165,9.83862966,34541.0,34540.0,2.18743233]
[1625691055312,9.85215599,34541.0,34540.0,2.18743233]
[1625691055613,9.85215599,34541.0,34540.0,1.0092464]
[1625691055764,9.85215599,34541.0,34540.0,2.18752796]
[1625691056072,9.85215599,34541.0,34540.0,1.0092464]
[1625691056518,9.85215599,34541.0,34540.0,2.18750629]
[1625691062003,2.22475599,34541.0,34540.0,2.19231196]
[1625691062528,1.03410695,34541.0,34540.0,2.19231196]
[1625691062977,1.03410695,34541.0,34540.0,5.87361196]
[1625691063502,1.03410695,34541.0,34540.0,7.21984383]
[1625691064252,1.03410695,34541.0,34540.0,7.27684383]
[1625691064703,1.03410695,34541.0,34540.0,6.26759743]
[1625691065003,0.01352633,34541.0,34540.0,7.27663465]
[1625691065227,0.01348239,34541.0,34540.0,7.27663465]
[1625691066879,1.50176962,34543.0,34540.0,7.27663465]
[1625691066880,0.01348225,34542.0,34540.0,7.27663465]
[1625691067179,0.01348228,34541.0,34540.0,3.74310567]
[1625691067329,0.01348228,34541.0,34540.0,3.7383]
[1625691067482,0.01348228,34541.0,34540.0,7.26974726]
[1625691067638,0.01348228,34542.0,34540.0,7.27456779]
[1625691067931,1.03416151,34542.0,34541.0,3.53668594]
[1625691068080,0.01348228,34542.0,34541.0,3.59368594]
[1625691068382,0.01348228,34542.0,34541.0,7.60098594]
[1625691070334,0.01348228,34542.0,34541.0,12.22708594]
[1625691071242,0.01348228,34542.0,34541.0,17.09848594]
[1625691072140,0.01348228,34542.0,34541.0,17.40948594]
[1625691072891,0.01348228,34542.0,34541.0,23.67418594]
[1625691073042,0.01348228,34542.0,34541.0,17.40948594]
[1625691075521,0.001,34544.0,34541.0,18.92180541]
[1625691075823,0.001,34544.0,34543.0,5.03659616]
[1625691075973,0.001,34544.0,34543.0,5.81532248]
[1625691076123,0.001,34544.0,34543.0,5.82014387]
[1625691076273,0.001,34545.0,34543.0,5.82014387]
[1625691076572,0.001,34545.0,34544.0,5.03694783]
[1625691076721,0.001,34545.0,34544.0,5.09394783]
[1625691082130,0.001,34545.0,34544.0,1.57145756]
[1625691082430,0.001,34545.0,34544.0,1.56663869]
[1625691088364,0.001,34548.0,34544.0,1.56663869]
[1625691088513,0.001,34548.0,34547.0,5.01864341]
[1625691088663,0.001,34548.0,34547.0,5.07564341]
[1625691088963,0.001,34548.0,34547.0,5.08046186]
[1625691090089,0.001,34548.0,34547.0,5.3210373]
[1625691090696,0.001,34548.0,34547.0,3.81544428]
[1625691091514,0.001,34548.0,34547.0,3.81062583]
[1625691091819,0.001,34548.0,34547.0,3.81544463]
[1625691097299,0.24157544,34551.0,34547.0,3.81544463]
[1625691097674,0.24157544,34551.0,34550.0,2.17470376]
[1625691097824,0.24157544,34551.0,34550.0,2.23170376]
[1625691098275,0.24157544,34551.0,34550.0,2.84395224]
[1625691098575,0.24157544,34551.0,34550.0,1.67295791]
[1625691098576,0.25505045,34551.0,34550.0,1.67295791]
[1625691098732,3.85115045,34551.0,34550.0,1.67295791]
[1625691101956,0.25505045,34551.0,34550.0,1.67777889]
[1625691102335,0.25505045,34551.0,34550.0,5.91637889]
[1625691102482,0.25505045,34551.0,34550.0,5.91155791]
[1625691103837,0.25505045,34551.0,34550.0,5.9163789]
[1625691104738,4.41825045,34551.0,34550.0,5.9163789]
[1625691105563,4.41825045,34551.0,34550.0,7.08838866]
[1625691105866,9.54765045,34551.0,34550.0,7.08838866]
[1625691106314,9.54665045,34551.0,34550.0,7.08838866]
[1625691106996,9.54665045,34551.0,34550.0,7.14538866]
[1625691107299,9.54665045,34551.0,34550.0,7.08838866]
[1625691107592,9.54665045,34551.0,34550.0,5.9163789]
[1625691110971,10.22556728,34551.0,34550.0,5.9163789]
[1625691111195,9.54665045,34551.0,34550.0,5.9163789]
[1625691111500,10.22560264,34551.0,34550.0,5.9163789]
[1625691111645,10.22560264,34551.0,34550.0,1.6777789]
[1625691112246,10.46617808,34551.0,34550.0,1.6777789]
[1625691113906,15.18197808,34551.0,34550.0,5.3971789]
[1625691114650,16.2006794,34551.0,34550.0,5.3971789]
[1625691115174,16.2006794,34551.0,34550.0,1.6777789]
[1625691116000,15.18197808,34551.0,34550.0,1.6777789]
[1625691116451,15.18197808,34551.0,34550.0,2.85183806]
[1625691117427,16.20113151,34551.0,34550.0,2.85183806]
[1625691117753,16.20113151,34551.0,34550.0,1.6777789]
[1625691118327,16.20113151,34551.0,34550.0,2.85283667]
[1625691118855,16.20113151,34551.0,34550.0,1.6777789]
[1625691119079,16.20113151,34551.0,34550.0,2.85292007]
[1625691119303,16.20113151,34551.0,34550.0,1.6777789]
[1625691119604,16.20113151,34551.0,34550.0,2.85283031]
[1625691127272,16.20113151,34551.0,34550.0,4.19916496]
[1625691127935,16.71133311,34551.0,34550.0,4.7039957]
[1625691128540,16.71133311,34551.0,34550.0,3.35766105]
[1625691128993,16.71133311,34551.0,34550.0,4.7043243]
[1625691130038,17.90197121,34551.0,34550.0,4.7043243]
[1625691130714,16.71133311,34551.0,34550.0,4.7043243]
[1625691130939,17.90219658,34551.0,34550.0,4.7043243]
[1625691135971,19.26483759,34551.0,34550.0,4.7043243]